fUSD/lending_fUSD_20241215
["ID","MTS","AMOUNT","RATE_DAILY","PERIOD"]
[345502753,1734301846468,-185735.8456808,0.000225,2]
[345502754,1734301846479,-1951.20730212,0.000225,2]
[345502755,1734301846549,-2204.3930419,0.000225,2]
[345502756,1734301846634,-7920.15467383,0.000225,2]
[345502757,1734301846647,-17560.78470579,0.000225,2]
[345502816,1734301964282,10000.0,0.00019,60]
[345502817,1734302039786,10000.0,0.00019,60]
[345502818,1734302051124,5959.22536661,0.00019,60]
[345502819,1734302206571,1400.0,0.00018,60]
[345502820,1734302206597,8600.0,0.00018,60]
[345502821,1734302247252,10000.0,0.00018,60]
[345502822,1734302257981,10000.0,0.00018,60]
[345502823,1734302266474,10000.0,0.00018,60]
[345502824,1734302275755,10000.0,0.00018,60]
[345502825,1734302286740,10000.0,0.00018,60]
[345502826,1734302295543,10000.0,0.00018,60]
[345502827,1734302319195,4040.77463339,0.00018,60]
[345502828,1734302608657,450.0,0.00013,2]
[345502836,1734303031589,-519.12,0.00019035,2]
[345502837,1734303031598,-187.79085418,0.00019164,2]
[345502838,1734303031692,-312.20914582,0.00019164,2]
[345502839,1734303031703,-340.27887951,0.00019164,2]
[345502840,1734303031717,-159.72112049,0.00019164,2]
[345502841,1734303031726,-151.14,0.00019164,2]
[345502842,1734303031735,-959.2,0.0002,2]
[345502843,1734303031743,-19067.13757101,0.0002,3]
[345502844,1734303031755,-538.88,0.0002,3]
[345502845,1734303031767,-6697.98242899,0.0002,3]
[345502846,1734303031777,-150.0,0.00020244,4]
[345502847,1734303031790,-500.0,0.0002026,2]
[345502848,1734303031800,-1183.32,0.00020313,2]
[345502849,1734303031809,-150.0,0.0002046,2]
[345502850,1734303031819,-412.04,0.00020495,2]
[345502851,1734303031829,-250.0,0.00020548,2]
[345502852,1734303031840,-202.82,0.00020573,2]
[345502853,1734303031851,-150.0,0.0002063,2]
[345502854,1734303031861,-827.53425147,0.0002065,2]
[345502855,1734303031871,-1100.0,0.0002065,2]
[345502856,1734303031881,-7539.00331962,0.00020651,2]
[345502857,1734303031896,-20499.60000001,0.00020651,2]
[345502858,1734303031908,-1033.52,0.00020651,2]
[345502859,1734303031921,-3250.59098037,0.00020651,2]
[345502860,1734303031931,-1000.0,0.0002081,2]
[345502861,1734303031940,-250.0,0.0002083,2]
[345502862,1734303031949,-253.98,0.0002087,2]
[345502863,1734303031958,-236.95,0.00020912,2]
[345502865,1734303031968,-312.79,0.00020931,2]
[345502866,1734303031977,-200.0,0.00020983,2]
[345502868,1734303031987,-202.4,0.00021,2]
[345502870,1734303031999,-827.53425144,0.00021,2]
[345502873,1734303032009,-157.18,0.00021194,30]
[345502875,1734303032019,-519.12,0.00021299,2]
[345502876,1734303032030,-348.95,0.00021308,2]
[345502878,1734303032040,-827.53425144,0.0002135,2]
[345502880,1734303032049,-500.0,0.00021356,2]
[345502882,1734303032059,-156.77768028,0.0002137,2]
[345502883,1734303032074,-425.64431972,0.0002137,2]
[345502884,1734303032084,-117.07475748,0.00021415,7]
[345502886,1734303037496,-707.84606771,0.00021415,7]
[345502887,1734303037519,-534.13917481,0.00021415,7]
[345502888,1734303037529,-1359.06,0.00021415,7]
[345502889,1734303037539,-1359.06,0.00021415,7]
[345502890,1734303037550,-1359.06,0.00021415,7]
[345502891,1734303037559,-786.23,0.00021462,2]
[345502892,1734303037568,-2777.61519961,0.00021567,2]
[345502893,1734303037577,-276.0,0.00021621,2]
[345502894,1734303037587,-1359.06,0.00021689,7]
[345502895,1734303037596,-1359.06,0.00021689,7]
[345502896,1734303037605,-827.53425144,0.000217,2]
[345502897,1734303037615,-312.79,0.00021706,2]
[345502898,1734303037625,-1018.74,0.00021825,2]
[345502899,1734303037641,-1815.0,0.00021825,2]
[345502900,1734303037650,-24866.02397508,0.000219,2]
[345502901,1734303037659,-1740.489,0.00021927,2]
[345502902,1734303037670,-1359.06,0.00021962,7]
[345502903,1734303037683,-1359.06,0.00021962,7]
[345502904,1734303037692,-995.28,0.00022,2]
[345502905,1734303037702,-500.0,0.00022,2]
[345502906,1734303037712,-500.0,0.00022,2]
[345502907,1734303037721,-500.0,0.00022,2]
[345502908,1734303037730,-500.0,0.00022,2]
[345502909,1734303037739,-500.0,0.00022,2]
[345502910,1734303037752,-500.0,0.00022,2]
[345502911,1734303037763,-500.0,0.00022,2]
[345502912,1734303037773,-500.0,0.00022,2]
[345502913,1734303037782,-500.0,0.00022,2]
[345502914,1734303037791,-500.0,0.00022,2]
[345502915,1734303037800,-500.0,0.00022,2]
[345502916,1734303037810,-500.0,0.00022,2]
[345502917,1734303037819,-500.0,0.00022,2]
[345502918,1734303037830,-500.0,0.00022,2]
[345502919,1734303037840,-500.0,0.00022,2]
[345502920,1734303037853,-500.0,0.00022,2]
[345502921,1734303037863,-500.0,0.00022,2]
[345502922,1734303037874,-500.0,0.00022,2]
[345502923,1734303037890,-600.0,0.00022,2]
[345502924,1734303037900,-600.0,0.00022,2]
[345502925,1734303037910,-600.0,0.00022,2]
[345502926,1734303037919,-600.0,0.00022,2]
[345502927,1734303037929,-600.0,0.00022,2]
[345502928,1734303037938,-600.0,0.00022,2]
[345502929,1734303037948,-600.0,0.00022,2]
[345502930,1734303037958,-600.0,0.00022,2]
[345502931,1734303037967,-600.0,0.00022,2]
[345502932,1734303037977,-600.0,0.00022,2]
[345502933,1734303037986,-600.0,0.00022,2]
[345502934,1734303037995,-600.0,0.00022,2]
[345502935,1734303038005,-600.0,0.00022,2]
[345502936,1734303038015,-600.0,0.00022,2]
[345502937,1734303038026,-2110.0,0.00022,2]
[345502938,1734303038036,-1815.0,0.0002205,2]
[345502939,1734303038046,-1121.94639642,0.0002205,2]
[345502940,1734303038056,-150.6907153,0.0002205,2]
[345502941,1734303038066,-1003.68631744,0.0002205,2]
[345502942,1734303038076,-827.53425144,0.0002205,2]
[345502943,1734303038085,-162.92221256,0.000222,2]
[345502944,1734303038095,-186.01808314,0.0002222,5]
[345502945,1734303038106,-1359.06,0.00022235,7]
[345502946,1734303038116,-1359.06,0.00022235,7]
[345502947,1734303038126,-162.92221254,0.0002224,2]
[345502948,1734303038140,-1815.0,0.00022275,2]
[345502949,1734303038149,-3484.19355038,0.0002228,2]
[345502950,1734303038158,-162.92221254,0.0002228,2]
[345502951,1734303038168,-40798.40501368,0.000223,2]
[345502952,1734303038308,-9936.12882695,0.000223,2]
[345502953,1734303038320,-1561.83798273,0.000223,2]
[345502954,1734303038334,-5275.42261841,0.000223,2]
[345502955,1734303038344,-162.92221254,0.0002232,2]
[345502956,1734303038353,-162.92221254,0.0002236,2]
[345502957,1734303038362,-800.0,0.00022384,2]
[345502958,1734303038372,-800.0,0.00022384,2]
[345502959,1734303038382,-374.76,0.00022384,2]
[345502960,1734303038398,-2728.0451,0.000224,2]
[345502961,1734303038408,-827.53425144,0.000224,2]
[345502962,1734303038418,-1204.88,0.000224,31]
[345502963,1734303038428,-1204.88,0.000224,31]
[345502964,1734303038438,-1204.88,0.000224,31]
[345502965,1734303038447,-1201.57707759,0.000224,31]
[345502966,1734303038459,-3.30292241,0.000224,31]
[345502967,1734303038469,-1204.88,0.000224,31]
[345502968,1734303038479,-1204.88,0.000224,31]
[345502969,1734303038488,-1204.88,0.000224,31]
[345502970,1734303038498,-1204.88,0.000224,31]
[345502971,1734303038508,-1204.88,0.000224,31]
[345502972,1734303038517,-1204.88,0.000224,31]
[345502973,1734303038528,-1204.88,0.000224,31]
[345502974,1734303038538,-1204.88,0.000224,31]
[345502975,1734303038548,-1204.88,0.000224,31]
[345502976,1734303038558,-1204.88,0.000224,31]
[345502977,1734303038567,-1204.88,0.000224,31]
[345502978,1734303038577,-1204.88,0.000224,31]
[345502979,1734303038589,-640.4902947,0.000224,2]
[345502980,1734303038601,-1269.82979538,0.000224,2]
[345502981,1734303038611,-162.92221254,0.000224,2]
[345502982,1734303038621,-312.79,0.0002248,2]
[345502983,1734303038631,-150.92,0.0002249,2]
[345502984,1734303038653,-150.92,0.0002249,2]
[345502985,1734303038662,-150.92,0.0002249,2]
[345502986,1734303038673,-150.92,0.0002249,2]
[345502987,1734303038684,-150.92,0.0002249,2]
[345502988,1734303038694,-150.92,0.0002249,2]
[345502989,1734303038703,-150.92,0.0002249,2]
[345502990,1734303038713,-150.92,0.0002249,2]
[345502991,1734303038723,-150.92,0.0002249,2]
[345502992,1734303038733,-150.92,0.0002249,2]
[345502993,1734303038742,-150.92,0.0002249,2]
[345502994,1734303038754,-150.92,0.0002249,2]
[345502995,1734303038765,-150.92,0.0002249,2]
[345502996,1734303038774,-150.92,0.0002249,2]
[345502997,1734303038784,-150.92,0.0002249,2]
[345502998,1734303038793,-150.92,0.0002249,2]
[345502999,1734303038803,-150.92,0.0002249,2]
[345503000,1734303038812,-150.92,0.0002249,2]
[345503001,1734303038822,-150.92,0.0002249,2]
[345503002,1734303038831,-150.92,0.0002249,2]
[345503003,1734303038841,-150.92,0.0002249,2]
[345503004,1734303038851,-150.92,0.0002249,2]
[345503005,1734303038860,-150.92,0.0002249,2]
[345503006,1734303038870,-150.92,0.0002249,2]
[345503007,1734303038880,-150.92,0.0002249,2]
[345503008,1734303038896,-150.92,0.0002249,2]
[345503009,1734303038906,-150.92,0.0002249,2]
[345503010,1734303038915,-150.92,0.0002249,2]
[345503011,1734303038925,-150.92,0.0002249,2]
[345503012,1734303038934,-150.92,0.0002249,2]
[345503013,1734303038943,-0.83018857,0.0002249,2]
[345503014,1734303038956,-150.08981143,0.0002249,2]
[345503015,1734303038965,-500.0,0.00022496,3]
[345503016,1734303038975,-500.0,0.00022496,3]
[345503017,1734303038984,-287.32203147,0.00022496,3]
[345503018,1734303038994,-500.0,0.00022496,3]
[345503019,1734303039003,-500.0,0.00022496,3]
[345503020,1734303039014,-500.0,0.00022496,3]
[345503021,1734303039023,-500.0,0.00022496,3]
[345503022,1734303039034,-490.55,0.00022496,3]
[345503023,1734303039043,-500.0,0.00022496,3]
[345503024,1734303039053,-500.0,0.00022496,3]
[345503025,1734303039062,-500.0,0.00022496,3]
[345503026,1734303039074,-500.0,0.00022496,3]
[345503027,1734303039083,-500.0,0.00022496,3]
[345503028,1734303039094,-500.0,0.00022496,3]
[345503029,1734303039103,-500.0,0.00022496,3]
[345503030,1734303039113,-1184.62,0.00022496,3]
[345503031,1734303039122,-500.0,0.00022496,3]
[345503032,1734303039132,-467.84396953,0.00022497,2]
[345503033,1734303039147,-1561.83798273,0.00022498,2]
[345503034,1734303039156,-140187.94981136,0.00022498,2]
[345503035,1734303039168,-14638.63629218,0.00022498,2]
[345503036,1734303039177,-999.0,0.00022499,2]
[345503037,1734303039187,-1652.71844,0.00022499,2]
[345503038,1734303039197,-500.0,0.00022499,3]
[345503039,1734303039207,-500.0,0.00022499,3]
[345503040,1734303039216,-372.41,0.00022499,3]
[345503041,1734303039226,-1184.62,0.00022499,3]
[345503042,1734303039236,-1184.62,0.00022499,3]
[345503043,1734303039246,-1184.62,0.00022499,3]
[345503044,1734303039255,-1184.62,0.00022499,3]
[345503045,1734303039265,-1150.41431766,0.00022499,3]
[345503046,1734303039277,-34.20568234,0.00022499,3]
[345503047,1734303039287,-1184.62,0.00022499,3]
[345503048,1734303039297,-1184.62,0.00022499,3]
[345503049,1734303039306,-1184.62,0.00022499,3]
[345503050,1734303039316,-1184.62,0.00022499,3]
[345503051,1734303039326,-1184.62,0.00022499,3]
[345503052,1734303039336,-1184.62,0.00022499,3]
[345503053,1734303039346,-1184.62,0.00022499,3]
[345503054,1734303039356,-1184.62,0.00022499,3]
[345503055,1734303039365,-1184.62,0.00022499,3]
[345503056,1734303039375,-1184.62,0.00022499,3]
[345503057,1734303039390,-1184.62,0.00022499,3]
[345503058,1734303039400,-1184.62,0.00022499,3]
[345503059,1734303039409,-1184.62,0.00022499,3]
[345503060,1734303039419,-1184.62,0.00022499,3]
[345503061,1734303039578,-1184.62,0.00022499,3]
[345503062,1734303039589,-1184.62,0.00022499,3]
[345503063,1734303039599,-1184.62,0.00022499,3]
[345503064,1734303039608,-1184.70759223,0.00022499,3]
[345503065,1734303039618,-500.0,0.00022499,3]
[345503066,1734303039627,-500.0,0.00022499,3]
[345503067,1734303039643,-500.0,0.00022499,3]
[345503068,1734303039653,-500.0,0.00022499,3]
[345503069,1734303039663,-500.0,0.00022499,3]
[345503070,1734303039674,-379.06972543,0.00022499,3]
[345503071,1734303039708,-120.93027457,0.00022499,3]
[345503072,1734303039718,-499.96842459,0.000225,4]
[345503073,1734303039730,-3824.5907655,0.000225,4]
[345503078,1734303040361,-35597.20202025,0.000225,4]
[345503079,1734303040373,-660.57808412,0.000225,4]
[345503080,1734303040391,-383.53999999,0.000225,4]
[345503081,1734303040407,-936.58917946,0.000225,4]
[345503082,1734303040416,-1700.7631585,0.000225,2]
[345503083,1734303040426,-1088.75960558,0.000225,2]
[345503084,1734303040438,-167.85870898,0.000225,2]
[345503085,1734303040447,-4716.43058023,0.000225,2]
[345503086,1734303040459,-282.52999028,0.000225,2]
[345503090,1734303042585,-6843.03942949,0.000225,2]
[345503091,1734303042595,-460.08557051,0.000225,2]
[345503092,1734303042687,-1881122.08213617,0.000225,2]
[345503098,1734303045425,-19475.0,0.000225,2]
[345503099,1734303045456,-1151.05580221,0.000225,2]
[345503100,1734303045468,-1402.78554505,0.000225,2]
[345503101,1734303045572,-16042.53102195,0.000225,2]
[345503102,1734303045690,-11202.40000009,0.000225,2]
[345503103,1734303045703,-6116.06837703,0.000225,2]
[345503104,1734303045805,-35872.50167581,0.000225,2]
[345503160,1734303046504,156.31,0.00010137,2]
[345503210,1734304231769,-484.94,0.00018014,2]
[345503211,1734304231779,-500.0,0.00019,4]
[345503212,1734304231789,-500.0,0.00019164,2]
[345503213,1734304231799,-500.0,0.00019164,2]
[345503214,1734304231809,-510.85,0.00019743,2]
[345503215,1734304231819,-945.01282973,0.00019744,2]
[345503216,1734304231828,-945.01282973,0.00019762,2]
[345503217,1734304231837,-1109.06247297,0.00019763,2]
[345503218,1734304231847,-510.85,0.00019764,2]
[345503219,1734304231856,-510.85,0.00019766,2]
[345503220,1734304231865,-945.01282973,0.00019767,2]
[345503221,1734304231875,-1109.06247297,0.0001977,2]
[345503222,1734304231884,-1109.06247297,0.00019773,2]
[345503223,1734304231894,-945.01282973,0.00019776,2]
[345503224,1734304231903,-1109.06247297,0.00019781,2]
[345503225,1734304231917,-510.85,0.00019784,2]
[345503226,1734304231926,-945.01282973,0.00019784,2]
[345503227,1734304231936,-1109.06247297,0.00019785,2]
[345503228,1734304231945,-945.01282973,0.00019786,2]
[345503229,1734304231955,-1109.06247297,0.00019789,2]
[345503230,1734304231965,-510.85,0.00019796,2]
[345503231,1734304231974,-510.85,0.00019797,2]
[345503232,1734304231984,-184.66646842,0.000199,2]
[345503233,1734304231995,-2380.0,0.0002,3]
[345503234,1734304232004,-2378.0,0.0002,3]
[345503235,1734304232014,-2378.0,0.0002,3]
[345503236,1734304232023,-2378.0,0.0002,3]
[345503237,1734304232033,-457.95,0.0002,2]
[345503238,1734304232042,-968.84,0.0002,2]
[345503239,1734304232052,-1007.07,0.0002,2]
[345503240,1734304232062,-992.18,0.0002,2]
[345503241,1734304232072,-484.94,0.00020278,2]
[345503242,1734304232083,-632.0,0.000203,2]
[345503243,1734304232092,-150.0,0.000203,2]
[345503244,1734304232101,-3880.0,0.000203,2]
[345503245,1734304232111,-1168.0,0.000203,2]
[345503246,1734304232120,-250.0,0.00020821,2]
[345503247,1734304232129,-319.47,0.00020839,2]
[345503248,1734304232138,-593.45,0.00020846,2]
[345503249,1734304232147,-171.15,0.00020851,2]
[345503250,1734304232158,-348.86,0.00020878,2]
[345503251,1734304232168,-239.94,0.000209,2]
[345503252,1734304232178,-405.0,0.00020942,2]
[345503253,1734304232188,-153.0,0.00020943,2]
[345503254,1734304232198,-153.0,0.00020943,2]
[345503255,1734304232207,-153.0,0.00020943,2]
[345503256,1734304232217,-86984.507,0.00020973,2]
[345503257,1734304232226,-157.0,0.00021,2]
[345503258,1734304232236,-1000.0,0.00021073,2]
[345503259,1734304232245,-500.0,0.00021356,2]
[345503260,1734304232255,-576.846,0.0002137,2]
[345503261,1734304232264,-152.0,0.00021515,3]
[345503262,1734304232274,-319.47,0.0002161,2]
[345503263,1734304232284,-2020.0,0.00021612,2]
[345503264,1734304232293,-157.18,0.00021666,30]
[345503265,1734304232303,-1751.0,0.00021825,2]
[345503266,1734304232312,-200.0,0.000219,2]
[345503267,1734304232321,-2289.24,0.00022,5]
[345503268,1734304232331,-1751.0,0.0002205,2]
[345503269,1734304232341,-1392.391,0.0002205,2]
[345503270,1734304232351,-1196.54609695,0.00022163,2]
[345503271,1734304232360,-270.48780477,0.00022174,2]
[345503272,1734304232370,-1000.0,0.00022191,2]
[345503273,1734304232379,-3000.0,0.000222,2]
[345503274,1734304232389,-150.0,0.00022274,2]
[345503275,1734304232398,-1751.0,0.00022275,2]
[345503276,1734304232409,-9936.12882695,0.00022299,2]
[345503277,1734304232418,-500.0,0.000223,120]
[345503278,1734304232428,-2000.0,0.000223,120]
[345503279,1734304232440,-500.0,0.000223,120]
[345503280,1734304232449,-200.0,0.000223,120]
[345503281,1734304232457,-319.47,0.00022381,2]
[345503282,1734304232466,-427.0776,0.00022395,2]
[345503283,1734304232475,-14520.4575,0.00022395,2]
[345503284,1734304232484,-2722.7155,0.000224,2]
[345503285,1734304232493,-1012.19,0.000224,31]
[345503286,1734304232502,-1012.19,0.000224,31]
[345503287,1734304232511,-1012.19,0.000224,31]
[345503288,1734304232520,-1012.19,0.000224,31]
[345503289,1734304232529,-1012.19,0.000224,31]
[345503290,1734304232538,-1012.19,0.000224,31]
[345503291,1734304232546,-1012.19,0.000224,31]
[345503292,1734304232555,-1012.19,0.000224,31]
[345503293,1734304232565,-1012.19,0.000224,31]
[345503294,1734304232575,-1012.19,0.000224,31]
[345503295,1734304232584,-1012.19,0.000224,31]
[345503296,1734304232593,-1012.19,0.000224,31]
[345503297,1734304232602,-1012.19,0.000224,31]
[345503298,1734304232611,-1012.19,0.000224,31]
[345503299,1734304232620,-1012.19,0.000224,31]
[345503300,1734304232629,-1012.19,0.000224,31]
[345503301,1734304232638,-1683.17250984,0.000224,2]
[345503302,1734304232648,-150.0,0.00022465,2]
[345503303,1734304232659,-500.0,0.00022465,3]
[345503304,1734304232668,-500.0,0.00022465,3]
[345503305,1734304232678,-500.0,0.00022465,3]
[345503306,1734304232687,-500.0,0.00022465,3]
[345503307,1734304232696,-500.0,0.00022465,3]
[345503308,1734304232705,-500.0,0.00022465,3]
[345503309,1734304232715,-500.0,0.00022465,3]
[345503310,1734304232724,-500.0,0.00022465,3]
[345503311,1734304232733,-500.0,0.00022465,3]
[345503312,1734304232743,-500.0,0.00022465,3]
[345503313,1734304232752,-500.0,0.00022465,3]
[345503314,1734304232761,-500.0,0.00022465,3]
[345503315,1734304232770,-500.0,0.00022465,3]
[345503316,1734304232779,-550.0,0.00022465,3]
[345503317,1734304232789,-500.0,0.00022465,3]
[345503318,1734304232799,-499.0,0.00022466,2]
[345503319,1734304232808,-21160.0,0.00022466,2]
[345503320,1734304232817,-275.2831983,0.00022473,2]
[345503322,1734304232826,-159.94963698,0.00022473,2]
[345503324,1734304232835,-500.0,0.00022473,2]
[345503325,1734304232845,-589.62884967,0.00022473,2]
[345503326,1734304232854,-280.21745732,0.00022473,2]
[345503327,1734304232863,-500.0,0.00022473,2]
[345503328,1734304232871,-80000.0,0.00022495,2]
[345503329,1734304232881,-150.121608,0.00022496,2]
[345503330,1734304232890,-150.121608,0.00022496,3]
[345503331,1734304232899,-150.121608,0.00022496,4]
[345503332,1734304232914,-150.121608,0.00022496,5]
[345503333,1734304232926,-500.0,0.00022496,3]
[345503334,1734304232935,-500.0,0.00022496,3]
[345503335,1734304232944,-500.0,0.00022496,3]
[345503336,1734304232953,-500.0,0.00022496,3]
[345503337,1734304232963,-500.0,0.00022496,3]
[345503338,1734304232973,-500.0,0.00022496,3]
[345503339,1734304232982,-500.0,0.00022496,3]
[345503340,1734304232991,-500.0,0.00022496,3]
[345503341,1734304233000,-500.0,0.00022496,3]
[345503342,1734304233009,-500.0,0.00022496,3]
[345503343,1734304233019,-500.0,0.00022496,3]
[345503344,1734304233028,-500.0,0.00022496,3]
[345503345,1734304233037,-500.0,0.00022496,3]
[345503346,1734304233047,-500.0,0.00022496,3]
[345503347,1734304233056,-500.0,0.00022496,3]
[345503348,1734304233066,-500.0,0.00022496,3]
[345503349,1734304233075,-500.0,0.00022496,3]
[345503350,1734304233086,-500.0,0.00022496,3]
[345503351,1734304233096,-500.0,0.00022496,3]
[345503352,1734304233106,-500.0,0.00022496,3]
[345503353,1734304233116,-500.0,0.00022496,3]
[345503354,1734304233125,-500.0,0.00022496,3]
[345503355,1734304233134,-500.0,0.00022496,3]
[345503356,1734304233143,-500.0,0.00022496,3]
[345503357,1734304233152,-500.0,0.00022496,3]
[345503358,1734304233166,-500.0,0.00022496,3]
[345503359,1734304233175,-571.3,0.00022496,3]
[345503360,1734304233185,-500.0,0.00022496,3]
[345503361,1734304233194,-500.0,0.00022496,3]
[345503362,1734304233203,-500.0,0.00022496,3]
[345503363,1734304233213,-500.0,0.00022496,3]
[345503364,1734304233223,-500.0,0.00022496,3]
[345503365,1734304233233,-500.0,0.00022496,3]
[345503366,1734304233242,-500.0,0.00022496,3]
[345503367,1734304233252,-500.0,0.00022496,3]
[345503368,1734304233261,-500.0,0.00022496,3]
[345503369,1734304233270,-500.0,0.00022496,3]
[345503370,1734304233280,-500.0,0.00022496,3]
[345503371,1734304233289,-500.0,0.00022496,3]
[345503372,1734304233299,-500.0,0.00022496,3]
[345503373,1734304233308,-500.0,0.00022496,3]
[345503374,1734304233317,-500.0,0.00022496,3]
[345503375,1734304233327,-392.36,0.00022496,3]
[345503376,1734304233336,-500.0,0.00022496,3]
[345503377,1734304233345,-500.0,0.00022496,3]
[345503378,1734304233356,-500.0,0.00022496,3]
[345503379,1734304233366,-500.0,0.00022496,3]
[345503380,1734304233375,-378.3,0.00022496,3]
[345503381,1734304233384,-563.79,0.00022496,3]
[345503382,1734304233394,-500.0,0.00022496,3]
[345503383,1734304233403,-500.0,0.00022496,3]
[345503384,1734304233417,-500.0,0.00022496,3]
[345503385,1734304233428,-500.0,0.00022496,3]
[345503386,1734304233441,-500.0,0.00022496,3]
[345503387,1734304233451,-170.95393096,0.00022496,3]
[345503388,1734304233460,-500.0,0.00022496,3]
[345503389,1734304233469,-500.0,0.00022496,3]
[345503390,1734304233482,-500.0,0.00022496,3]
[345503391,1734304233491,-500.0,0.00022496,3]
[345503392,1734304233501,-500.0,0.00022496,3]
[345503393,1734304233513,-500.0,0.00022496,3]
[345503394,1734304233523,-500.0,0.00022496,3]
[345503395,1734304233532,-500.0,0.00022496,3]
[345503396,1734304233542,-500.0,0.00022496,3]
[345503397,1734304233551,-500.0,0.00022496,3]
[345503398,1734304233560,-500.0,0.00022496,3]
[345503399,1734304233570,-275.67,0.00022496,3]
[345503400,1734304233579,-500.0,0.00022496,3]
[345503401,1734304233589,-500.0,0.00022496,3]
[345503402,1734304233599,-517.83,0.00022496,3]
[345503403,1734304233608,-500.0,0.00022496,3]
[345503404,1734304233618,-500.0,0.00022496,3]
[345503405,1734304233627,-500.0,0.00022496,3]
[345503406,1734304233637,-500.0,0.00022496,3]
[345503407,1734304233646,-500.0,0.00022496,3]
[345503408,1734304233655,-500.0,0.00022496,3]
[345503409,1734304233668,-500.0,0.00022496,3]
[345503410,1734304233678,-500.0,0.00022496,3]
[345503411,1734304233688,-500.0,0.00022496,3]
[345503412,1734304233698,-500.0,0.00022496,3]
[345503413,1734304233708,-500.0,0.00022496,3]
[345503414,1734304233718,-500.0,0.00022496,3]
[345503415,1734304233729,-286.34,0.00022496,3]
[345503416,1734304233739,-500.0,0.00022496,3]
[345503417,1734304233749,-500.0,0.00022496,3]
[345503418,1734304233758,-500.0,0.00022496,3]
[345503419,1734304233768,-500.0,0.00022496,3]
[345503420,1734304233778,-500.0,0.00022496,3]
[345503421,1734304233789,-500.0,0.00022496,3]
[345503422,1734304233798,-500.0,0.00022496,3]
[345503423,1734304233808,-500.0,0.00022496,3]
[345503424,1734304233817,-500.0,0.00022496,3]
[345503425,1734304233826,-500.0,0.00022496,3]
[345503426,1734304233835,-500.0,0.00022496,3]
[345503427,1734304233845,-500.0,0.00022496,3]
[345503428,1734304233855,-500.0,0.00022496,3]
[345503429,1734304233864,-500.0,0.00022496,3]
[345503430,1734304233875,-500.0,0.00022496,3]
[345503431,1734304233885,-500.0,0.00022496,3]
[345503432,1734304233894,-500.0,0.00022496,3]
[345503433,1734304233904,-500.0,0.00022496,3]
[345503434,1734304233918,-500.0,0.00022496,3]
[345503435,1734304233927,-500.0,0.00022496,3]
[345503436,1734304233937,-500.0,0.00022496,3]
[345503437,1734304233947,-425.17,0.00022496,3]
[345503438,1734304233956,-500.0,0.00022496,3]
[345503439,1734304233965,-500.0,0.00022496,3]
[345503440,1734304233975,-500.0,0.00022496,3]
[345503441,1734304233985,-500.0,0.00022496,3]
[345503442,1734304233994,-500.0,0.00022496,3]
[345503443,1734304234002,-500.0,0.00022496,3]
[345503444,1734304234128,-500.0,0.00022496,3]
[345503445,1734304234171,-507.06,0.00022496,3]